Workbook

Sheet 1º
A1: RESOLUCIÓN DE ECUACIONES DE 1er GRADO
A2: ax+b=0 | G2: REPRESENTACIÓN DE LA
G3: RECTA ASOCIADA | I3: y= | J3: =C5 -> 4 | K3: =IF(D5<0,"x -","x +") -> x - | L3: =ABS(D5) -> 5
A4: Escribe los valores | C4: a | D4: b
A5: de los parámetros: | C5: 4 | D5: -5
A6: SOLUCIÓN: | B6: =IF(AND(C5=0,D5=0),"IDENTIDAD",IF(C5=0,"SIN SOLUCIÓN",-(D5/C5))) -> 1.25
A7: TABLA de VALORES
A8: x | B8: =IF(D5>0,C5&"x+"&ABS(D5),C5&"x-"&ABS(D5)) -> 4x-5
A9: -20 | B9: =$C$5*(A9)+$D$5 -> -85
A10: -19 | B10: =$C$5*(A10)+$D$5 -> -81
A11: -18 | B11: -77
A12: -17 | B12: -73
A13: -16 | B13: -69
A14: -15 | B14: -65
A15: -14 | B15: -61
A16: -13 | B16: -57
A17: -12 | B17: -53
A18: -11 | B18: -49
A19: -10 | B19: -45
A20: -9 | B20: -41
A21: -8 | B21: -37
A22: -7 | B22: -33
A23: -6 | B23: -29
A24: -5 | B24: -25
A25: -4 | B25: -21
A26: -3 | B26: -17
A27: -2 | B27: -13
A28: -1 | B28: -9
A29: 0 | B29: -5
A30: 1 | B30: -1
A31: 2 | B31: 3
A32: 3 | B32: 7
A33: 4 | B33: 11
A34: 5 | B34: 15
A35: 6 | B35: 19
A36: 7 | B36: 23
A37: 8 | B37: 27
A38: 9 | B38: 31
A39: 10 | B39: 35
A40: 11 | B40: 39
A41: 12 | B41: 43
A42: 13 | B42: 47
A43: 14 | B43: 51
A44: 15 | B44: 55
A45: 16 | B45: 59
A46: 17 | B46: 63
A47: 18 | B47: 67
A48: 19 | B48: 71
A49: 20 | B49: 75

Sheet 2º
A1: RESOLUCIÓN DE ECUACIONES DE 2º GRADO
A2: ax2+bx+c=0 | G2: REPRESENTACIÓN DE LA
G3: PARÁBOLA ASOCIADA | I3: ="y="&C6&ABS(C5)&"x²"&D6&ABS(D5)&"x"&E6&ABS(E5) -> y=-1x²-4x-2
A4: Escribe los valores | C4: a | D4: b | E4: c
A5: de los parámetros: | C5: -1 | D5: -4 | E5: -2
A6: SOLUCIONES: | C6: =IF(C5<0,"-","+") -> - | D6: =IF(D5<0,"-","+") -> - | E6: =IF(E5<0,"-","+") -> -
A7: =IF(D5^2-4*C5*E5<0,"SIN SOLUCIÓN",(-D5+SQRT(D5^2-4*C5*E5))/(2*C5)) -> -3.414213562 | B7: =IF(D5^2-4*C5*E5<0,"",(-D5-SQRT(D5^2-4*C5*E5))/(2*C5)) -> -0.5857864376
D8: ejes
A9: TABLA de VALORES
A10: -20 | B10: =$C$5*(A10)^2+$D$5*(A10)+$E$5 -> -322
A11: =A10+0.5 -> -19.5 | B11: =$C$5*(A11)^2+$D$5*(A11)+$E$5 -> -304.25
A12: =A11+0.5 -> -19 | B12: -287
A13: -18.5 | B13: -270.25
A14: -18 | B14: -254
A15: -17.5 | B15: -238.25
A16: -17 | B16: -223
A17: -16.5 | B17: -208.25
A18: -16 | B18: -194
A19: -15.5 | B19: -180.25
A20: -15 | B20: -167
A21: -14.5 | B21: -154.25
A22: -14 | B22: -142
A23: -13.5 | B23: -130.25
A24: -13 | B24: -119
A25: -12.5 | B25: -108.25
A26: -12 | B26: -98
A27: -11.5 | B27: -88.25
A28: -11 | B28: -79
A29: -10.5 | B29: -70.25
A30: -10 | B30: -62
A31: -9.5 | B31: -54.25
A32: -9 | B32: -47
A33: -8.5 | B33: -40.25
A34: -8 | B34: -34
A35: -7.5 | B35: -28.25
A36: -7 | B36: -23
A37: -6.5 | B37: -18.25
A38: -6 | B38: -14
A39: -5.5 | B39: -10.25
A40: -5 | B40: -7
A41: -4.5 | B41: -4.25
A42: -4 | B42: -2
A43: -3.5 | B43: -0.25
A44: -3 | B44: 1
A45: -2.5 | B45: 1.75
A46: -2 | B46: 2
A47: -1.5 | B47: 1.75
A48: -1 | B48: 1
A49: -0.5 | B49: -0.25
A50: 0 | B50: -2
A51: 0.5 | B51: =$C$5*(A51)^2+$D$5*(A51)+$E$5 -> -4.25
A52: 1 | B52: -7
A53: 1.5 | B53: -10.25
A54: 2 | B54: -14
A55: 2.5 | B55: -18.25
A56: 3 | B56: -23
A57: 3.5 | B57: -28.25
A58: 4 | B58: -34
A59: 4.5 | B59: -40.25
A60: 5 | B60: -47
A61: 5.5 | B61: -54.25
A62: 6 | B62: -62
A63: 6.5 | B63: -70.25
A64: 7 | B64: -79
A65: 7.5 | B65: -88.25
A66: 8 | B66: -98
A67: 8.5 | B67: -108.25
A68: 9 | B68: -119
A69: 9.5 | B69: -130.25
A70: 10 | B70: -142
A71: 10.5 | B71: -154.25
A72: 11 | B72: -167
A73: 11.5 | B73: -180.25
A74: 12 | B74: -194
A75: 12.5 | B75: =$C$5*(A75)^2+$D$5*(A75)+$E$5 -> -208.25
A76: =A75+0.5 -> 13 | B76: -223
A77: 13.5 | B77: -238.25
A78: 14 | B78: -254
A79: 14.5 | B79: -270.25
A80: 15 | B80: -287
A81: 15.5 | B81: -304.25
A82: 16 | B82: -322
A83: 16.5 | B83: -340.25
A84: 17 | B84: -359
A85: 17.5 | B85: -378.25
A86: 18 | B86: -398
A87: 18.5 | B87: -418.25
A88: 19 | B88: -439
A89: 19.5 | B89: -460.25
A90: 20 | B90: -482

Sheet sis2x2
A1: RESOLUCIÓN DE SISTEMAS LINEALES DE 2X2 (I)
A6: Introduce los datos
A7: a | B7: b | C7: c
A8: 5 | B8: 4 | C8: 12
A9: d | B9: e | C9: f
A10: 3 | B10: 5 | C10: 8
A11: SOLUCIÓN
A12: X | B12: Y
A13: =IF(AND(a*e=b*d,a*_f=c_*d),"COINCIDENTES",IF(a*e=b*d,"PARALELAS",(b*_f-e*c_)/(b*d-a*e))) -> 2.153846154 | B13: =IF(AND(a*e=b*d,a*_f=c_*d)," ",IF(a*e=b*d," ",IF(AND(b=0,e=0)," ",IF(b=0,(_f-d*c_/a)/e,(c_-a*A13)/b)))) -> 0.3076923077
A15: x | B15: y1 | C15: y2
A16: -10 | B16: =IF(b=0, "vertical",(c_-a*x)/b) -> 15.5 | C16: =IF(e=0, "vertical",(_f-d*x)/e) -> 7.6
A17: 10 | B17: =IF(b=0, "vertical",(c_-a*x)/b) -> -9.5 | C17: =IF(e=0, "vertical",(_f-d*x)/e) -> -4.4

Sheet Gauss
A1: RESOLUCIÓN DE SISTEMAS LINEALES DE 2X2 (II)
A3: Introduce los datos | I3: SOLUCIÓN POR IGUALACIÓN
A4: a | B4: b | C4: c | I4: x | J4: y
A5: 3 | B5: 3 | C5: 2 | I5: =IF(AND(a*e=b*d,a*_f=c_*d),"COINCIDENTES",IF(a*e=b*d,"PARALELAS",(b*_f-e*c_)/(b*d-a*e))) -> 3.666666667 | J5: =IF(AND(a*e=b*d,a*_f=c_*d)," ",IF(a*e=b*d," ",IF(AND(b=0,e=0)," ",IF(b=0,(_f-d*c_/a)/e,(c_-a*I5)/b)))) -> -3
A6: d | B6: e | C6: f
A7: 3 | B7: 2 | C7: 5
A9: =a -> 3 | B9: =b -> 3 | C9: =c_ -> 2 | E9: =a -> 3 | F9: =b -> 3 | G9: =c_ -> 2 | I9: x= | J9: =IF(AND(F10=0,G10=0),"INFINITAS",IF(F10=0,"SISTEMA",(G9-F9*J10)/E9)) -> 3.666666667
A10: =d -> 3 | B10: =e -> 2 | C10: =_f -> 5 | E10: =d*a-a*d -> 0 | F10: =e*a-b*d -> -3 | G10: =_f*a-c_*d -> 9 | I10: y= | J10: =IF(AND(F10=0,G10=0),"SOLUCIONES",IF(F10=0,"INCOMPATIBLE",G10/F10)) -> -3
A15: x | B15: y1 | C15: y2 | E15: x | F15: y1 | G15: y2
A16: -10 | B16: =IF(b=0, "vertical",(c_-a*x)/b) -> 10.66666667 | C16: =IF(e=0, "vertical",(_f-d*x)/e) -> 17.5 | E16: -10 | F16: =IF(b=0, "vertical",(c_-a*x)/b) -> 10.66666667 | G16: =G10/F10 -> -3
A17: 10 | B17: =IF(b=0, "vertical",(c_-a*x)/b) -> -9.333333333 | C17: =IF(e=0, "vertical",(_f-d*x)/e) -> -12.5 | E17: 10 | F17: =IF(b=0, "vertical",(c_-a*x)/b) -> -9.333333333 | G17: =G10/F10 -> -3
